bitfinex-derivatives/quotes_SOLF0:USTF0_20250609
["timestamp","ask_amount","ask_price","bid_price","bid_amount"]
[1749446635721,16.6100538,150.56,150.55,0.04743808]
[1749446636421,16.60725774,150.56,150.55,0.04743808]
[1749446637024,16.60578423,150.56,150.55,0.04743808]
[1749446637214,16.60578305,150.56,150.55,0.04743808]
[1749446637418,12.22442527,150.56,150.55,0.04743808]
[1749446644228,16.59585836,150.56,150.55,0.04743808]
[1749446644433,16.59600592,150.56,150.55,0.04743808]
[1749446644622,16.59589598,150.56,150.55,0.04743808]
[1749446645929,20.97267315,150.56,150.55,0.04743808]
[1749446646229,20.97259693,150.56,150.55,0.04743808]
[1749446646425,20.97247855,150.56,150.55,0.04743808]
[1749446646631,16.59589598,150.56,150.55,0.04743808]
[1749446646837,20.97261601,150.56,150.55,0.04743808]
[1749446647230,23.74427859,150.56,150.55,0.04743808]
[1749446647435,19.36755856,150.56,150.55,0.04743808]
[1749446647638,23.74653046,150.56,150.55,0.04743808]
[1749446647833,23.74653164,150.56,150.55,0.04743808]
[1749446648033,23.74652936,150.56,150.55,0.04743808]
[1749446648738,23.74652936,150.56,150.55,3.808e-05]
[1749446649438,19.36755856,150.56,150.55,3.808e-05]
[1749446649638,23.76554222,150.56,150.55,3.808e-05]
[1749446649831,23.76559348,150.56,150.55,3.808e-05]
[1749446650337,29.89748421,150.56,150.55,3.808e-05]
[1749446650837,29.90924777,150.56,150.55,3.808e-05]
[1749446651341,25.49944929,150.56,150.55,3.808e-05]
[1749446651541,29.90908401,150.56,150.55,3.808e-05]
[1749446651845,18.19146801,150.56,150.55,3.808e-05]
[1749446652041,29.8556048,150.56,150.55,3.808e-05]
[1749446652242,29.85541794,150.56,150.55,3.808e-05]
[1749446652436,25.44597008,150.56,150.55,3.808e-05]
[1749446652645,29.85550788,150.56,150.55,3.808e-05]
[1749446652843,25.44597008,150.56,150.55,3.808e-05]
[1749446653045,29.85550689,150.56,150.55,3.808e-05]
[1749446653548,29.85536502,150.56,150.55,3.808e-05]
[1749446654445,29.85632866,150.56,150.55,3.808e-05]
[1749446654846,29.85641464,150.56,150.55,3.808e-05]
[1749446655046,25.44597008,150.56,150.55,3.808e-05]
[1749446655347,29.85636309,150.56,150.55,3.808e-05]
[1749446655644,23.75610468,150.56,150.55,3.808e-05]
[1749446656345,23.75626796,150.56,150.55,3.808e-05]
[1749446657842,19.34571167,150.56,150.55,3.808e-05]
[1749446658348,23.75766314,150.56,150.55,3.808e-05]
[1749446658551,27.52211296,150.56,150.55,3.808e-05]
[1749446658752,31.93396214,150.56,150.55,3.808e-05]
[1749446658952,6.642,150.49,150.47,6.583]
[1749446659143,5.58179393,150.48,150.47,42.11466258]
[1749446660142,5.58179393,150.48,150.47,39.343]
[1749446660348,5.58179393,150.48,150.46,0.04489395]
[1749446660546,2.81384645,150.49,150.46,0.04489395]
[1749446660547,5.58179393,150.47,150.46,0.04489395]
[1749446660844,12.22449393,150.47,150.46,0.04489395]
[1749446661044,16.63159274,150.47,150.46,0.04489395]
[1749446661551,12.22449393,150.47,150.46,0.04489395]
[1749446661854,16.6312455,150.47,150.46,0.04489395]
[1749446662554,16.63106544,150.47,150.46,0.04489395]
[1749446662754,12.22449393,150.47,150.46,0.04489395]
[1749446664656,16.59263829,150.47,150.46,0.04489395]
[1749446665148,18.34262935,150.47,150.46,9.395e-05]
[1749446665354,12.22449393,150.47,150.46,9.395e-05]
[1749446665543,22.7023751,150.47,150.46,9.395e-05]
[1749446665746,16.59139409,150.47,150.46,9.395e-05]
[1749446666551,16.58655553,150.47,150.46,9.395e-05]
[1749446666854,16.58651441,150.47,150.46,9.395e-05]
[1749446667557,22.69373757,150.47,150.46,9.395e-05]
[1749446667752,16.58653517,150.47,150.46,9.395e-05]
[1749446667950,22.69375647,150.47,150.46,9.395e-05]
[1749446668257,18.33171523,150.47,150.46,9.395e-05]
[1749446668462,22.69169545,150.47,150.46,9.395e-05]
[1749446668660,18.32965421,150.47,150.46,9.395e-05]
[1749446668958,22.69167247,150.47,150.46,9.395e-05]
[1749446669160,18.3296351,150.47,150.46,9.395e-05]
[1749446669359,22.69186126,150.47,150.46,9.395e-05]
[1749446669854,22.66340546,150.47,150.46,9.395e-05]
[1749446670050,18.32978766,150.47,150.46,9.395e-05]
[1749446670254,22.66350612,150.47,150.46,9.395e-05]
[1749446670557,18.32978766,150.47,150.46,9.395e-05]
[1749446670862,22.66311429,150.47,150.46,9.395e-05]
[1749446671751,22.65910775,150.47,150.46,9.395e-05]
[1749446672459,12.22449393,150.47,150.46,9.395e-05]
[1749446672658,22.6597078,150.47,150.46,9.395e-05]
[1749446672852,16.55413985,150.47,150.46,9.395e-05]
[1749446673655,16.55167319,150.47,150.46,9.395e-05]
[1749446673960,16.55171392,150.47,150.46,9.395e-05]
[1749446674562,6.6451,150.42,150.38,32.76]
[1749446674758,6.6451,150.42,150.38,34.9439]
[1749446675363,6.6451,150.42,150.38,41.5904]
[1749446675564,6.68891623,150.42,150.38,41.63238098]
[1749446675756,0.04381623,150.42,150.38,34.98588098]
[1749446675963,32.78,150.45,150.39,4.33448684]
[1749446676664,5.53528574,150.44,150.38,34.98588098]
[1749446676866,6.69542109,150.43,150.39,6.646]
[1749446677055,0.05062109,150.43,150.39,6.646]
[1749446677865,6.69522109,150.43,150.39,6.646]
[1749446678066,0.05062109,150.43,150.39,6.646]
[1749446678470,6.69532109,150.43,150.39,6.646]
[1749446678766,0.05062109,150.43,150.39,6.646]
[1749446679164,6.6449,150.42,150.39,6.646]
[1749446679367,0.05062109,150.43,150.4,6.6457]
[1749446679567,0.05062109,150.43,150.41,2.1423]
[1749446679865,6.69532109,150.43,150.41,4.3636]
[1749446681569,6.6449,150.42,150.41,4.3636]
[1749446685567,9.47099666,150.43,150.41,4.3636]
[1749446690074,9.47099666,150.43,150.41,11.0089]
[1749446692780,0.05062109,150.43,150.42,6.6449]
[1749446693080,0.05062109,150.43,150.42,9.42067557]
[1749446694473,0.05062109,150.43,150.41,4.3636]
[1749446695474,0.05062109,150.43,150.41,7.13937557]
[1749446695776,0.05062109,150.43,150.42,6.6449]
[1749446699475,5.6023598,150.43,150.42,6.6449]
[1749446701475,12.2470598,150.43,150.41,7.13937557]
[1749446701679,5.55173871,150.42,150.4,2.77577557]
[1749446701879,2.82639666,150.43,150.39,2.77577557]
[1749446702073,5.55851496,150.42,150.39,2.77577557]
[1749446702274,6.6451,150.42,150.39,9.42157557]
[1749446702476,6.6451,150.42,150.39,2.77577557]
[1749446702682,5.56247962,150.41,150.4,6.6457]
[1749446703381,6.69532109,150.43,150.4,9.42147557]
[1749446703681,5.56966087,150.42,150.4,9.42147557]
[1749446703886,5.56966087,150.41,150.4,9.42147557]
[1749446704382,0.05062109,150.43,150.42,6.6449]
[1749446704586,0.05062109,150.43,150.41,2.77577557]
[1749446704786,0.05062109,150.43,150.41,9.42097557]
[1749446705980,6.69512109,150.43,150.41,9.42097557]
[1749446710089,0.05062109,150.43,150.41,9.42097557]
[1749446713488,2.82639666,150.43,150.4,32.76]
[1749446713690,2.77577557,150.42,150.4,32.76]
[1749446713884,11.01016175,150.41,150.39,2.77577557]
[1749446714089,6.6453,150.41,150.39,2.77577557]
[1749446714289,2.77577557,150.42,150.39,2.77577557]
[1749446714694,9.42097557,150.42,150.39,9.42167557]
[1749446714990,4.3656701,150.41,150.39,2.77577557]
[1749446715184,6.13775436,150.42,150.39,2.77577557]
[1749446715388,4.36595538,150.41,150.39,9.42177557]
[1749446715795,4.36595538,150.41,150.39,2.77577557]
[1749446716494,6.645,150.42,150.39,2.77577557]
[1749446716694,0.05062109,150.43,150.41,2.77577557]
[1749446717195,4.36694247,150.42,150.4,2.77577557]
[1749446717392,0.05062109,150.43,150.39,2.77577557]
[1749446717592,6.69532109,150.43,150.4,6.6455]
[1749446718292,4.36578437,150.42,150.4,9.42127557]
[1749446718487,6.69532109,150.43,150.4,9.42127557]
[1749446718696,4.36565056,150.42,150.4,9.42127557]
[1749446718894,4.36565056,150.41,150.4,9.42127557]
[1749446719086,4.3659243,150.41,150.4,9.42127557]
[1749446719288,5.53044084,150.42,150.4,9.42127557]
[1749446719487,4.36592548,150.41,150.4,9.42127557]
[1749446719693,9.89631442,150.41,150.4,9.42127557]
[1749446719991,9.89606835,150.41,150.4,9.42127557]
[1749446720595,6.69522109,150.43,150.4,9.42127557]
[1749446720795,11.00569685,150.42,150.4,9.42127557]
[1749446721098,9.88751158,150.41,150.4,9.42127557]
[1749446721290,5.52585924,150.41,150.4,2.77577557]
[1749446721595,9.88751394,150.41,150.4,2.77577557]
[1749446721791,9.88751047,150.41,150.4,2.77577557]
[1749446722097,9.8876141,150.41,150.4,2.77577557]
[1749446722296,9.8876141,150.41,150.4,9.42157557]
[1749446722496,12.17115924,150.41,150.4,2.77577557]
[1749446722693,16.53253824,150.41,150.4,2.77577557]
[1749446722894,16.53253824,150.41,150.39,2.77577557]
[1749446723089,5.52585924,150.4,150.39,2.77577557]
[1749446723494,5.52585924,150.4,150.39,9.42177557]
[1749446723691,5.52585924,150.4,150.38,0.04198098]
[1749446723998,5.52585924,150.39,150.38,2.81775655]
[1749446724198,5.52585924,150.39,150.38,9.46415655]
[1749446742928,1e-08,150.39,150.38,9.46415655]
[1749446743225,6.18671658,150.43,150.42,6.6449]
[1749446743428,4.51370219,150.43,150.42,6.6449]
[1749446743725,0.05062109,150.43,150.41,9.42097557]
[1749446743926,6.18671658,150.43,150.41,9.42097557]
[1749446744528,4.46595519,150.42,150.41,9.42097557]
[1749446745425,12.83121658,150.43,150.41,9.42097557]
[1749446745626,4.46234871,150.42,150.41,9.42097557]
[1749446745927,4.46247049,150.42,150.41,2.77577557]
[1749446746231,12.83121658,150.43,150.41,2.77577557]
[1749446746528,4.46240208,150.42,150.41,2.77577557]
[1749446747129,4.46240208,150.42,150.4,9.42137557]
[1749446747330,4.47601243,150.41,150.4,9.42137557]
[1749446747526,12.83121658,150.43,150.4,9.42137557]
[1749446747726,4.47603852,150.42,150.4,9.42137557]
[1749446747927,4.47604269,150.41,150.4,9.42137557]
[1749446748128,4.47609071,150.41,150.4,9.42137557]
[1749446749028,12.83121658,150.43,150.4,9.42137557]
[1749446749826,4.47635201,150.42,150.4,9.42137557]
[1749446750029,4.48540742,150.41,150.4,9.42137557]
[1749446750931,4.49025202,150.41,150.4,9.42137557]
[1749446751136,6.18671658,150.43,150.41,6.6451]
[1749446751330,6.18671658,150.43,150.41,2.77577557]
[1749446751533,4.4905753,150.42,150.41,2.77577557]
[1749446752229,4.4905753,150.42,150.41,9.42107557]
[1749446752434,4.49183353,150.42,150.41,2.77577557]
[1749446752633,6.18671658,150.43,150.41,2.77577557]
[1749446752931,4.49183455,150.42,150.41,9.42087557]
[1749446754235,4.49270122,150.42,150.41,9.42087557]
[1749446754432,4.49340491,150.42,150.41,9.42087557]
[1749446754634,4.494008,150.42,150.41,9.42087557]
[1749446754834,4.49400796,150.42,150.41,9.42087557]
[1749446755035,4.49400796,150.42,150.41,2.77577557]
[1749446755036,16.65016441,150.42,150.41,2.77577557]
[1749446755232,16.1413599,150.42,150.4,2.77577557]
[1749446755432,10.00526441,150.41,150.4,2.77577557]
[1749446756038,10.01161385,150.41,150.4,2.77577557]
[1749446756441,5.51125646,150.41,150.4,2.77577557]
[1749446756632,10.011423,150.41,150.4,2.77577557]
[1749446757139,10.011423,150.41,150.4,9.42157557]
[1749446757742,10.011423,150.41,150.4,6.6458]
[1749446757940,10.01109897,150.41,150.4,6.6458]
[1749446758142,5.51125646,150.41,150.4,6.6458]
[1749446758738,10.01120597,150.41,150.4,6.6458]
[1749446758932,10.01124287,150.41,150.4,6.6458]
[1749446759442,5.51125646,150.41,150.4,6.6458]
[1749446759631,10.00544404,150.41,150.4,6.6458]
[1749446760031,10.00572664,150.41,150.4,6.6458]
[1749446760241,5.51125646,150.41,150.4,6.6458]
[1749446760437,10.00585221,150.41,150.4,6.6458]
[1749446760942,10.00612224,150.41,150.4,6.6458]
[1749446761138,5.51125646,150.41,150.4,6.6458]
[1749446761344,10.00619581,150.41,150.4,6.6458]
[1749446761645,5.51125646,150.41,150.4,6.6458]
[1749446761849,10.00619007,150.41,150.4,6.6458]
[1749446762142,5.51125646,150.41,150.4,6.6458]
[1749446762343,10.00857162,150.41,150.4,9.42157557]
[1749446762644,10.0103094,150.41,150.4,9.42157557]
[1749446762844,5.51125646,150.41,150.4,9.42157557]
[1749446763241,10.01167433,150.41,150.4,9.42157557]
[1749446764441,10.01187005,150.41,150.4,9.42157557]
[1749446764743,10.01171111,150.41,150.4,9.42157557]
[1749446764944,10.01171116,150.41,150.4,9.42157557]
[1749446765540,0.05062109,150.43,150.42,6.6449]
[1749446765744,4.55065711,150.43,150.42,9.42067557]
[1749446766143,4.5505999,150.43,150.42,9.42067557]
[1749446766344,0.05062109,150.43,150.42,9.42067557]
[1749446794556,10.22459762,150.43,150.41,32.74]
[1749446794762,10.17397653,150.42,150.41,32.74]
[1749446794963,5.52470094,150.42,150.39,2.77577557]
[1749446795162,5.52470094,150.41,150.39,2.77577557]
[1749446795366,5.52470094,150.4,150.39,2.77577557]
[1749446797962,5.52470094,150.4,150.39,9.42197557]
[1749446801470,5.51519225,150.4,150.39,9.42197557]
[1749446806968,9.42087557,150.42,150.39,9.42197557]
[1749446807165,5.50831136,150.41,150.39,9.42197557]
[1749446807366,9.42087557,150.42,150.39,9.42197557]
[1749446807664,5.50831136,150.41,150.39,9.42197557]
[1749446807964,9.42087557,150.42,150.39,9.42197557]
[1749446808164,5.5080942,150.41,150.39,9.42197557]
[1749446808366,9.42087557,150.42,150.39,9.42197557]
[1749446808564,5.50826205,150.41,150.39,9.42197557]
[1749446808765,9.42087557,150.42,150.39,9.42197557]
[1749446808964,5.50803438,150.41,150.39,9.42197557]
[1749446809265,9.42087557,150.42,150.39,9.42197557]
[1749446809466,5.50816038,150.41,150.39,9.42197557]
[1749446809663,9.42087557,150.42,150.39,9.42197557]
[1749446809867,5.50808373,150.41,150.39,9.42197557]
[1749446810066,5.50808373,150.4,150.39,9.42197557]
[1749446810467,9.42087557,150.42,150.39,9.42197557]
[1749446810670,5.50808361,150.41,150.39,9.42197557]
[1749446810863,5.50808361,150.4,150.39,9.42197557]
[1749446811267,5.50808361,150.4,150.39,2.77577557]
[1749446811575,14.92995918,150.4,150.38,32.76198098]
[1749446811763,5.50808361,150.39,150.38,32.76198098]
[1749446812568,10.11900295,150.39,150.38,32.76198098]
[1749446812965,5.50808361,150.39,150.38,32.76198098]
[1749446813170,10.11900295,150.39,150.38,32.76198098]
[1749446814168,10.11870844,150.39,150.38,32.76198098]
[1749446814373,5.50808361,150.39,150.38,32.76198098]
[1749446815276,12.15428361,150.39,150.38,32.76198098]
[1749446815575,12.15428361,150.39,150.38,0.04198098]
[1749446816477,14.93005918,150.39,150.38,0.04198098]
[1749446817173,14.93005918,150.39,150.35,32.72]
[1749446817174,12.87856025,150.39,150.35,32.72]
[1749446817377,2.77577557,150.37,150.35,32.72]
[1749446817581,5.50808361,150.36,150.35,32.72]
[1749446818973,8.28385918,150.36,150.34,0.0480658]
[1749446819285,2.77577557,150.36,150.34,0.0480658]
[1749446819478,2.82232996,150.37,150.34,6.6962658]
[1749446819678,0.04655439,150.37,150.35,2.77577557]
[1749446820185,0.04655439,150.37,150.36,6.6476]
[1749446820781,0.04655439,150.37,150.36,9.42337557]
[1749446823483,0.04655439,150.37,150.36,42.14337557]
[1749446823983,2.1598,150.43,150.36,42.14337557]
[1749446823984,2.77577557,150.41,150.38,6.6463]
[1749446824180,10.07353682,150.4,150.38,6.6463]
[1749446824387,2.77577557,150.41,150.38,6.6463]
[1749446824583,10.07815993,150.4,150.38,6.6463]
[1749446824785,9.42097557,150.42,150.38,6.6463]
[1749446824982,10.07855813,150.41,150.38,6.69424534]
[1749446825184,5.48907879,150.4,150.38,6.69424534]
[1749446825484,9.46386544,150.42,150.38,6.69424534]
[1749446825685,10.07872406,150.41,150.38,6.69424534]
[1749446825886,5.48913388,150.4,150.38,6.69424534]
[1749446826076,9.46386544,150.42,150.38,6.69424534]
[1749446826280,10.07898209,150.41,150.38,6.69424534]
[1749446826487,10.07898209,150.4,150.38,6.69424534]
[1749446826686,9.46386544,150.42,150.38,9.47002091]
[1749446826882,10.08148874,150.41,150.39,6.6462]
[1749446827083,5.49002508,150.4,150.39,6.6462]
[1749446828086,10.08367123,150.4,150.39,6.6462]
[1749446828487,5.49002508,150.4,150.39,6.6462]
[1749446831691,5.49002508,150.4,150.39,9.42197557]
[1749446834883,10.10241488,150.4,150.39,9.42197557]
[1749446835090,10.10236381,150.4,150.39,9.42197557]
[1749446835286,10.10236381,150.4,150.38,9.47022091]
[1749446835493,6.6454,150.41,150.38,9.47022091]
[1749446835693,10.11973045,150.4,150.38,9.47022091]
[1749446835897,5.50744161,150.39,150.38,9.47022091]
[1749446836392,5.50744161,150.39,150.38,0.04794534]
[1749446836794,8.28321718,150.39,150.38,0.04794534]
[1749446836989,12.89297133,150.39,150.38,0.04794534]
[1749446837598,8.28321718,150.39,150.38,0.04794534]
[1749446837789,19.54435181,150.39,150.38,0.04794534]
[1749446837990,19.54256438,150.39,150.38,0.04794534]
[1749446838185,19.54260716,150.39,150.38,0.04794534]
[1749446838391,6.6474,150.37,150.34,9.42397557]
[1749446838587,5.50744161,150.36,150.34,9.42397557]
[1749446838787,6.6474,150.37,150.34,9.42397557]
[1749446839000,5.51200987,150.36,150.34,9.42397557]
[1749446839298,6.69172765,150.37,150.34,9.42397557]
[1749446839493,5.51239161,150.36,150.34,9.42397557]
[1749446839688,6.69172765,150.37,150.34,9.42397557]
[1749446839894,5.51351145,150.36,150.34,9.42397557]
[1749446840096,6.69172765,150.37,150.34,9.42397557]
[1749446840294,5.51337285,150.36,150.34,9.42397557]
[1749446840496,6.69172765,150.37,150.34,9.42397557]
[1749446840692,5.5132459,150.36,150.34,9.42397557]
[1749446840895,6.69172765,150.37,150.34,9.42397557]
[1749446841095,5.51317514,150.36,150.34,9.42397557]
[1749446841296,6.69172765,150.37,150.34,9.42397557]
[1749446841498,5.51313466,150.36,150.34,9.42397557]
[1749446841698,6.69172765,150.37,150.34,9.42397557]
[1749446841897,5.51277458,150.36,150.34,9.42397557]
[1749446842199,6.69172765,150.37,150.34,9.42397557]
[1749446842494,5.51293949,150.36,150.34,9.42397557]
[1749446842698,6.69172765,150.37,150.34,9.42397557]
[1749446842899,5.50170098,150.36,150.34,9.42397557]
[1749446843103,6.69172765,150.37,150.35,2.77577557]
[1749446843299,0.04432765,150.37,150.35,9.42377557]
[1749446844301,5.50088036,150.36,150.35,9.42377557]
[1749446844593,5.50076523,150.36,150.35,9.42377557]
[1749446844793,5.50091466,150.36,150.35,9.42377557]
[1749446845001,0.04432765,150.37,150.35,9.42377557]
[1749446845395,5.50076478,150.36,150.35,9.42377557]
[1749446845595,0.04432765,150.37,150.35,9.42377557]
[1749446846007,5.50088099,150.36,150.35,9.42377557]
[1749446846306,5.50088248,150.36,150.35,9.42377557]
[1749446846602,5.50096366,150.36,150.35,9.42377557]
[1749446846897,5.50107265,150.36,150.35,9.42377557]
[1749446847201,0.04432765,150.37,150.35,9.42377557]
[1749446847397,5.50106153,150.36,150.35,9.42377557]
[1749446847596,0.04432765,150.37,150.35,9.42377557]
[1749446847998,5.50391839,150.36,150.35,9.42377557]
[1749446848297,5.5039169,150.36,150.35,9.42377557]
[1749446848497,0.04432765,150.37,150.35,9.42377557]
[1749446848799,5.50413552,150.36,150.35,9.42377557]
[1749446849395,5.5045423,150.36,150.35,9.42377557]
[1749446850897,5.5050207,150.36,150.35,9.42377557]
[1749446851305,0.04432765,150.37,150.35,9.42377557]
[1749446851601,5.50507258,150.36,150.35,9.42377557]
[1749446852105,0.04432765,150.37,150.35,9.42377557]
[1749446852798,5.50582207,150.36,150.35,9.42377557]
[1749446853000,5.50582356,150.36,150.35,9.42377557]
[1749446853201,0.04432765,150.37,150.35,9.42377557]
[1749446853401,5.50582356,150.36,150.35,6.648]
[1749446853594,5.50669451,150.36,150.35,9.42377557]
[1749446855600,0.04432765,150.37,150.36,6.6476]
[1749446855799,0.04432765,150.37,150.36,9.42337557]
[1749446860813,0.04432765,150.37,150.36,42.12337557]
[1749446871917,0.04432765,150.37,150.36,35.47577557]
[1749446872120,4.93938108,150.37,150.36,35.47577557]
[1749446872516,10.45123775,150.37,150.36,32.7]
[1749446872921,5.55618432,150.37,150.36,32.7]
[1749446873118,17.09811542,150.37,150.36,32.7]
[1749446873317,17.09804244,150.37,150.36,32.7]
[1749446873821,12.20328432,150.37,150.36,32.7]
[1749446874023,17.09809911,150.37,150.36,32.7]
[1749446874218,17.09809911,150.37,150.35,2.77577557]
[1749446874418,10.40667146,150.36,150.35,2.77577557]
[1749446874614,10.40683206,150.36,150.35,2.77577557]
[1749446874818,10.40678501,150.36,150.35,9.42367557]
[1749446875022,5.51185667,150.36,150.35,9.42367557]
[1749446875221,10.40684236,150.36,150.35,9.42367557]
[1749446875717,10.40689072,150.36,150.35,9.42367557]
[1749446876113,5.51185667,150.36,150.35,9.42367557]
[1749446876314,10.40644786,150.36,150.35,9.42367557]
[1749446876524,10.40638584,150.36,150.35,9.42367557]
[1749446876826,17.05398499,150.36,150.35,2.77577557]
[1749446877125,17.05337257,150.36,150.34,6.6483]
[1749446877432,0.04432765,150.37,150.34,6.6483]
[1749446877433,10.40590112,150.35,150.34,9.42407557]
[1749446877723,5.51185667,150.35,150.34,9.42407557]
[1749446877918,10.40585249,150.35,150.34,9.42407557]
[1749446878327,10.40608326,150.35,150.34,9.42407557]
[1749446878619,5.51185667,150.35,150.34,9.42407557]
[1749446878924,10.4061991,150.35,150.34,9.42407557]
[1749446879223,5.51185667,150.35,150.34,9.42407557]
[1749446879526,10.40634091,150.35,150.34,9.42407557]
[1749446879825,10.40626624,150.35,150.34,9.42407557]
[1749446880022,5.51185667,150.35,150.34,9.42407557]
[1749446880222,10.40623785,150.35,150.34,9.42407557]
[1749446880925,10.39022071,150.35,150.34,9.42407557]
[1749446881122,5.51185667,150.35,150.34,9.42407557]
[1749446881421,10.39031085,150.35,150.33,35.49843688]
[1749446881619,10.38798874,150.34,150.33,32.72266131]
[1749446882122,10.38794408,150.34,150.33,32.72266131]
[1749446882323,10.38840345,150.34,150.33,32.72266131]
[1749446882527,10.38809545,150.34,150.33,32.72266131]
[1749446882923,10.38886497,150.34,150.33,32.72266131]
[1749446883120,5.51035337,150.34,150.33,32.72266131]
[1749446883525,10.38977781,150.34,150.33,39.37156131]
[1749446884317,5.51035337,150.34,150.33,39.37156131]
[1749446884718,10.38739852,150.34,150.33,39.37156131]
[1749446884919,10.38739836,150.34,150.33,39.37156131]
[1749446885123,10.38739836,150.34,150.33,42.36770914]
[1749446885124,5.51035337,150.34,150.33,42.36770914]
[1749446885327,10.3873699,150.34,150.33,32.72266131]
[1749446885532,10.38569616,150.34,150.33,35.71885175]
[1749446885725,10.38295644,150.34,150.33,35.71885151]
[1749446886223,5.51035337,150.34,150.33,35.71885151]
[1749446886428,5.51035337,150.34,150.33,32.72266131]
[1749446887024,10.38268125,150.34,150.33,35.71900418]
[1749446887327,5.51035337,150.34,150.33,42.36790443]
[1749446887523,10.38274268,150.34,150.33,42.36821254]
[1749446887729,10.38265865,150.34,150.33,42.36824426]
[1749446888027,10.38278973,150.34,150.33,42.36820812]
[1749446888229,10.38278973,150.34,150.33,42.36820837]
[1749446888428,10.38278842,150.34,150.33,42.368189]
[1749446888623,5.51035337,150.34,150.33,42.368189]
[1749446888824,10.3831315,150.34,150.33,42.368189]
[1749446889024,10.38346588,150.34,150.33,42.36819366]
[1749446889329,10.38316216,150.34,150.33,39.37156131]
[1749446889531,10.38339025,150.34,150.33,42.37101751]
[1749446889730,10.37885584,150.34,150.33,42.37097513]
[1749446889922,5.51035337,150.34,150.33,39.37156131]
[1749446890127,5.51035337,150.34,150.33,42.37097489]
[1749446890128,10.37890393,150.34,150.33,42.37097489]
[1749446890429,10.37872486,150.34,150.33,42.37097513]
[1749446890633,5.51035337,150.34,150.33,42.37097513]
[1749446890932,5.51035337,150.34,150.33,42.37094268]
[1749446891130,10.37811614,150.34,150.33,42.37093]
[1749446891331,5.51035337,150.34,150.33,39.37156131]
[1749446891531,10.378031,150.34,150.33,42.37096197]
[1749446891730,10.378031,150.34,150.33,42.37096172]
[1749446891930,5.51035337,150.34,150.33,42.37096197]
[1749446892230,4.86767763,150.34,150.33,39.37156131]
[1749446892528,4.86790723,150.34,150.33,45.14665181]
[1749446892834,0.04432765,150.37,150.33,38.49760889]
[1749446893021,10.36792117,150.36,150.35,2.77577557]
[1749446893328,10.36792116,150.36,150.35,9.42377557]
[1749446893628,10.36824942,150.36,150.35,12.42290873]
[1749446893834,4.86942671,150.36,150.35,9.42377557]
[1749446894022,0.04432765,150.37,150.36,6.6476]
[1749446894226,10.416045,150.37,150.36,12.42247656]
[1749446894426,5.54639929,150.37,150.36,12.42247656]
[1749446894634,10.41604527,150.37,150.36,12.4224446]
[1749446894835,10.42964516,150.37,150.36,12.42244482]
[1749446895027,10.42960054,150.37,150.36,12.4224446]
[1749446895232,10.42960054,150.37,150.36,12.42244482]
[1749446895432,10.42960054,150.37,150.36,12.4224446]
[1749446895635,10.42954166,150.37,150.36,9.42337557]
[1749446895829,5.54639929,150.37,150.36,9.42337557]
[1749446896335,10.43025041,150.37,150.36,9.42337557]
[1749446896639,5.54639929,150.37,150.36,9.42337557]
[1749446896935,10.43029719,150.37,150.36,9.42337557]
[1749446897841,5.54639929,150.37,150.36,9.42337557]
[1749446898335,10.43001007,150.37,150.36,9.42337557]
[1749446898533,5.54639929,150.37,150.36,9.42337557]
[1749446898737,10.42995232,150.37,150.35,6.6478]
[1749446898938,10.38562467,150.36,150.35,6.6478]
[1749446899438,10.39456636,150.36,150.34,39.3282]
[1749446899740,10.40081527,150.35,150.34,39.3282]
[1749446899939,10.40099565,150.35,150.34,39.3282]
[1749446900140,10.40093894,150.35,150.34,39.3282]
[1749446900541,10.40068264,150.35,150.34,39.3282]
[1749446901041,10.40091175,150.35,150.34,39.3282]
[1749446901443,4.89288908,150.35,150.34,39.3282]
[1749446901637,6.69152765,150.37,150.34,39.3282]
[1749446901835,10.39907271,150.36,150.34,42.10397557]
[1749446902140,10.39861948,150.35,150.34,42.10397557]
[1749446902344,5.50802902,150.35,150.34,42.10397557]
[1749446902644,10.39871843,150.35,150.34,42.10397557]
[1749446902839,4.89084603,150.35,150.34,42.10397557]
[1749446903041,4.88926059,150.35,150.34,42.10397557]
[1749446903342,4.88958061,150.35,150.34,42.10397557]
[1749446903840,4.88991416,150.35,150.34,42.10397557]
[1749446904045,0.04432765,150.37,150.35,6.648]
[1749446904244,10.37631466,150.36,150.35,2.77577557]
[1749446904943,5.49998502,150.36,150.35,2.77577557]
[1749446905244,10.37548562,150.36,150.35,2.77577557]
[1749446905439,10.37537253,150.36,150.35,2.77577557]
[1749446905639,10.37532544,150.36,150.35,9.42377557]
[1749446905846,10.37527835,150.36,150.35,9.42377557]
[1749446906046,10.37612806,150.36,150.35,9.42377557]
[1749446906852,10.38143222,150.36,150.35,9.42377557]
[1749446907150,10.38144868,150.36,150.35,9.42377557]
[1749446907346,10.38144855,150.36,150.35,9.42377557]
[1749446907651,10.38144967,150.36,150.35,9.42377557]
[1749446907953,10.38154806,150.36,150.35,9.42377557]
[1749446908151,10.38154806,150.36,150.35,6.648]
[1749446909051,5.49998502,150.36,150.35,6.648]
[1749446909252,10.38311016,150.36,150.35,9.42377557]
[1749446909448,10.38287598,150.36,150.35,9.42377557]
[1749446909945,10.38298367,150.36,150.35,9.42377557]